[Event "December 19 Late 2023"]
[Site "https://www.chess.com"]
[Date "2023.12.19"]
[Round "3"]
[White "Kovacevic, Radmila"]
[Black "Krzywda, Andrzej"]
[Result "0-1"]
[Board "152"]
[TimeControl "180+1"]
[WhiteFideId "933171"]
[BlackFideId "1114565"]
[WhiteElo "2052"]
[BlackElo "2130"]
[WhiteTeam "SRB"]
[BlackTeam "POL"]
[WhiteClock "0:00:00"]
[BlackClock "0:00:32"]

1. e4 {[%clk 0:02:57]}  e5 {[%clk 0:02:59]} 2. d4 {[%clk 0:02:57]}  exd4 {[%clk 0:02:59]} 3. Qxd4 {[%clk 0:02:58]}  Nc6 {[%clk 0:02:59]} 4. Qe3 {[%clk 0:02:58]}  g6 {[%clk 0:02:59]} 5. h4 {[%clk 0:02:55]}  h5 {[%clk 0:02:45]} 6. Qc3 {[%clk 0:02:49]}  Qf6 {[%clk 0:02:39]} 7. Bg5 {[%clk 0:02:49]}  Qg7 {[%clk 0:02:34]} 8. Nf3 {[%clk 0:02:41]}  d6 {[%clk 0:02:33]} 9. Bb5 {[%clk 0:02:40]}  Bd7 {[%clk 0:02:32]} 10. O-O {[%clk 0:02:37]}  Nge7 {[%clk 0:02:31]} 11. e5 {[%clk 0:02:23]}  dxe5 {[%clk 0:02:21]} 12. Bxc6 {[%clk 0:02:12]}  Nxc6 {[%clk 0:02:15]} 13. a3 {[%clk 0:01:52]}  Bd6 {[%clk 0:02:01]} 14. Qd2 {[%clk 0:01:33]}  f6 {[%clk 0:01:54]} 15. Be3 {[%clk 0:01:31]}  Ne7 {[%clk 0:01:51]} 16. c4 {[%clk 0:01:29]}  Nf5 {[%clk 0:01:37]} 17. c5 {[%clk 0:01:24]}  Nxe3 {[%clk 0:01:37]} 18. Qxe3 {[%clk 0:01:22]}  Be7 {[%clk 0:01:36]} 19. Nc3 {[%clk 0:01:19]}  Bc6 {[%clk 0:01:37]} 20. b4 {[%clk 0:01:17]}  a6 {[%clk 0:01:36]} 21. Rfd1 {[%clk 0:01:10]}  O-O {[%clk 0:01:35]} 22. Rd2 {[%clk 0:00:55]}  Rad8 {[%clk 0:01:35]} 23. Rad1 {[%clk 0:00:54]}  Rxd2 {[%clk 0:01:34]} 24. Rxd2 {[%clk 0:00:55]}  Rd8 {[%clk 0:01:34]} 25. Rxd8+ {[%clk 0:00:54]}  Bxd8 {[%clk 0:01:35]} 26. Qd3 {[%clk 0:00:54]}  Be7 {[%clk 0:01:29]} 27. Qc4+ {[%clk 0:00:52]}  Qf7 {[%clk 0:01:27]} 28. Qxf7+ {[%clk 0:00:44]}  Kxf7 {[%clk 0:01:27]} 29. Nd2 {[%clk 0:00:44]}  f5 {[%clk 0:01:25]} 30. g3 {[%clk 0:00:43]}  Ke6 {[%clk 0:01:25]} 31. Kf1 {[%clk 0:00:42]}  a5 {[%clk 0:01:13]} 32. Ke2 {[%clk 0:00:41]}  axb4 {[%clk 0:01:13]} 33. axb4 {[%clk 0:00:42]}  e4 {[%clk 0:01:06]} 34. Ke3 {[%clk 0:00:33]}  Bf8 {[%clk 0:01:04]} 35. f4 {[%clk 0:00:24]}  Bg7 {[%clk 0:01:00]} 36. Ndb1 {[%clk 0:00:20]}  b6 {[%clk 0:00:50]} 37. b5 {[%clk 0:00:14]}  Be8 {[%clk 0:00:50]} 38. cxb6 {[%clk 0:00:13]}  cxb6 {[%clk 0:00:50]} 39. Ne2 {[%clk 0:00:11]}  Bxb5 {[%clk 0:00:46]} 40. Nd4+ {[%clk 0:00:11]}  Bxd4+ {[%clk 0:00:45]} 41. Kxd4 {[%clk 0:00:12]}  Kd6 {[%clk 0:00:42]} 42. Nd2 {[%clk 0:00:11]}  Ba6 {[%clk 0:00:38]} 43. Nb3 {[%clk 0:00:11]}  Bf1 {[%clk 0:00:36]} 44. Nd2 {[%clk 0:00:10]}  Bd3 {[%clk 0:00:36]} 45. Nb3 {[%clk 0:00:10]}  Kc6 {[%clk 0:00:36]} 46. Nd2 {[%clk 0:00:09]}  Kb5 {[%clk 0:00:36]} 47. Ke5 {[%clk 0:00:08]}  Kb4 {[%clk 0:00:35]} 48. Kd4 {[%clk 0:00:07]}  b5 {[%clk 0:00:34]} 49. g4 {[%clk 0:00:04]}  hxg4 {[%clk 0:00:34]} 50. Ke3 {[%clk 0:00:02]}  Kc3 {[%clk 0:00:33]} 51. h5 {[%clk 0:00:00]}  gxh5 {[%clk 0:00:32]} 0-1

[Event "December 19 Late 2023"]
[Site "https://www.chess.com"]
[Date "2023.12.19"]
[Round "3"]
[White "Porat, Tori"]
[Black "Azali, Tannaz"]
[Result "0-1"]
[Board "153"]
[TimeControl "180+1"]
[WhiteFideId "30982626"]
[BlackFideId "12537721"]
[WhiteElo "1693"]
[BlackElo "1828"]
[WhiteTeam "USA"]
[BlackTeam "IRI"]
[WhiteClock "0:00:19"]
[BlackClock "0:01:14"]

1. d4 {[%clk 0:03:00]}  Nf6 {[%clk 0:02:59]} 2. c4 {[%clk 0:03:01]}  e6 {[%clk 0:02:59]} 3. Nf3 {[%clk 0:02:59]}  Bb4+ {[%clk 0:02:59]} 4. Nc3 {[%clk 0:02:59]}  O-O {[%clk 0:02:57]} 5. Bg5 {[%clk 0:02:59]}  h6 {[%clk 0:02:56]} 6. Bh4 {[%clk 0:02:58]}  d5 {[%clk 0:02:53]} 7. e3 {[%clk 0:02:58]}  Nbd7 {[%clk 0:02:51]} 8. Bd3 {[%clk 0:02:58]}  c6 {[%clk 0:02:51]} 9. O-O {[%clk 0:02:58]}  a5 {[%clk 0:02:52]} 10. e4 {[%clk 0:02:52]}  Bxc3 {[%clk 0:02:31]} 11. bxc3 {[%clk 0:02:43]}  dxe4 {[%clk 0:02:22]} 12. Bxe4 {[%clk 0:02:21]}  g5 {[%clk 0:02:17]} 13. Bxg5 {[%clk 0:02:15]}  hxg5 {[%clk 0:02:11]} 14. Nxg5 {[%clk 0:02:13]}  Nxe4 {[%clk 0:02:09]} 15. Nxe4 {[%clk 0:02:11]}  Qh4 {[%clk 0:02:09]} 16. Qf3 {[%clk 0:02:02]}  f5 {[%clk 0:02:05]} 17. Nd6 {[%clk 0:01:41]}  Nf6 {[%clk 0:01:57]} 18. c5 {[%clk 0:01:41]}  Ne4 {[%clk 0:01:57]} 19. g3 {[%clk 0:01:30]}  Qf6 {[%clk 0:01:49]} 20. Nxe4 {[%clk 0:01:29]}  fxe4 {[%clk 0:01:50]} 21. Qxe4 {[%clk 0:01:26]}  Bd7 {[%clk 0:01:50]} 22. f4 {[%clk 0:01:11]}  Qf5 {[%clk 0:01:45]} 23. Qf3 {[%clk 0:01:10]}  Rf7 {[%clk 0:01:40]} 24. Rae1 {[%clk 0:01:09]}  Rg7 {[%clk 0:01:32]} 25. Re5 {[%clk 0:01:07]}  Qg4 {[%clk 0:01:32]} 26. Qg2 {[%clk 0:01:03]}  Rf8 {[%clk 0:01:32]} 27. c4 {[%clk 0:00:52]}  Rf5 {[%clk 0:01:31]} 28. Rxf5 {[%clk 0:00:49]}  Qxf5 {[%clk 0:01:26]} 29. Re1 {[%clk 0:00:49]}  Qd3 {[%clk 0:01:26]} 30. d5 {[%clk 0:00:41]}  cxd5 {[%clk 0:01:24]} 31. cxd5 {[%clk 0:00:41]}  Qxd5 {[%clk 0:01:23]} 32. Qf2 {[%clk 0:00:39]}  Bc6 {[%clk 0:01:23]} 33. Kf1 {[%clk 0:00:35]}  Rd7 {[%clk 0:01:19]} 34. Re5 {[%clk 0:00:20]}  Qh1+ {[%clk 0:01:14]} 35. Ke2 {[%clk 0:00:20]}  Qd1+ {[%clk 0:01:13]} 36. Ke3 {[%clk 0:00:19]}  Qd3# {[%clk 0:01:14]} 0-1

[Event "December 19 Late 2023"]
[Site "https://www.chess.com"]
[Date "2023.12.19"]
[Round "3"]
[White "Kubatko, Ivan"]
[Black "Travadon, Loic"]
[Result "0-1"]
[Board "158"]
[TimeControl "180+1"]
[WhiteFideId "24111473"]
[BlackFideId "26092131"]
[WhiteElo "2285"]
[BlackElo "2406"]
[WhiteTeam "RUS"]
[BlackTeam "FRA"]
[WhiteClock "0:00:00"]
[BlackClock "0:00:22"]

1. e4 {[%clk 0:02:56]}  e5 {[%clk 0:02:59]} 2. Nf3 {[%clk 0:02:56]}  Nc6 {[%clk 0:02:59]} 3. Nc3 {[%clk 0:02:56]}  Nf6 {[%clk 0:02:58]} 4. g3 {[%clk 0:02:56]}  d5 {[%clk 0:02:53]} 5. exd5 {[%clk 0:02:57]}  Nxd5 {[%clk 0:02:53]} 6. Bg2 {[%clk 0:02:58]}  Bg4 {[%clk 0:02:51]} 7. h3 {[%clk 0:02:52]}  Be6 {[%clk 0:02:39]} 8. d3 {[%clk 0:02:36]}  Bc5 {[%clk 0:02:36]} 9. O-O {[%clk 0:02:29]}  f6 {[%clk 0:02:31]} 10. Bd2 {[%clk 0:01:30]}  Qd7 {[%clk 0:02:30]} 11. Kh2 {[%clk 0:01:28]}  h5 {[%clk 0:02:25]} 12. Nxd5 {[%clk 0:01:06]}  Bxd5 {[%clk 0:02:22]} 13. b4 {[%clk 0:01:06]}  Bb6 {[%clk 0:02:19]} 14. c4 {[%clk 0:00:59]}  Bxf3 {[%clk 0:02:12]} 15. Qxf3 {[%clk 0:00:59]}  Bd4 {[%clk 0:02:08]} 16. Rad1 {[%clk 0:00:54]}  h4 {[%clk 0:01:46]} 17. g4 {[%clk 0:00:54]}  O-O {[%clk 0:01:42]} 18. b5 {[%clk 0:00:53]}  Nd8 {[%clk 0:01:41]} 19. Qd5+ {[%clk 0:00:52]}  Qxd5 {[%clk 0:01:39]} 20. Bxd5+ {[%clk 0:00:53]}  Kh8 {[%clk 0:01:39]} 21. Be3 {[%clk 0:00:50]}  c6 {[%clk 0:01:37]} 22. Be4 {[%clk 0:00:46]}  c5 {[%clk 0:01:35]} 23. Bxd4 {[%clk 0:00:42]}  exd4 {[%clk 0:01:31]} 24. f4 {[%clk 0:00:42]}  Rb8 {[%clk 0:01:30]} 25. Bd5 {[%clk 0:00:37]}  b6 {[%clk 0:01:24]} 26. Rde1 {[%clk 0:00:37]}  Nb7 {[%clk 0:00:55]} 27. Re7 {[%clk 0:00:37]}  Nd6 {[%clk 0:00:56]} 28. Rxa7 {[%clk 0:00:26]}  Rfe8 {[%clk 0:00:57]} 29. Rf2 {[%clk 0:00:20]}  Re3 {[%clk 0:00:55]} 30. Rd7 {[%clk 0:00:20]}  Ne8 {[%clk 0:00:53]} 31. Be4 {[%clk 0:00:19]}  Kg8 {[%clk 0:00:47]} 32. g5 {[%clk 0:00:18]}  Kf8 {[%clk 0:00:43]} 33. Rg2 {[%clk 0:00:17]}  Rc8 {[%clk 0:00:38]} 34. gxf6 {[%clk 0:00:16]}  Nxf6 {[%clk 0:00:37]} 35. Rdxg7 {[%clk 0:00:16]}  Rg3 {[%clk 0:00:33]} 36. R7xg3 {[%clk 0:00:15]}  hxg3+ {[%clk 0:00:34]} 37. Kxg3 {[%clk 0:00:16]}  Nxe4+ {[%clk 0:00:35]} 38. dxe4 {[%clk 0:00:16]}  Ra8 {[%clk 0:00:33]} 39. Kg4 {[%clk 0:00:15]}  Ra3 {[%clk 0:00:33]} 40. Kf5 {[%clk 0:00:15]}  Rc3 {[%clk 0:00:33]} 41. e5 {[%clk 0:00:16]}  Rxc4 {[%clk 0:00:33]} 42. Ke6 {[%clk 0:00:15]}  d3 {[%clk 0:00:31]} 43. f5 {[%clk 0:00:15]}  Rc2 {[%clk 0:00:29]} 44. Rg1 {[%clk 0:00:12]}  d2 {[%clk 0:00:27]} 45. Rd1 {[%clk 0:00:08]}  c4 {[%clk 0:00:22]} 46. f6 {[%clk 0:00:05]}  c3 {[%clk 0:00:22]} 47. Kf5 {[%clk 0:00:00]}  Rc1 {[%clk 0:00:22]} 0-1

[Event "December 19 Late 2023"]
[Site "https://www.chess.com"]
[Date "2023.12.19"]
[Round "3"]
[White "Wieczorek, Zbigniew"]
[Black "Malek, Omid"]
[Result "1-0"]
[Board "161"]
[TimeControl "180+1"]
[WhiteFideId "1102001"]
[BlackFideId "2605384"]
[WhiteElo "2156"]
[BlackElo "2013"]
[WhiteTeam "POL"]
[BlackTeam "CAN"]
[WhiteClock "0:00:09"]
[BlackClock "0:00:06"]

1. e4 {[%clk 0:00:53]}  e6 {[%clk 0:02:59]} 2. d3 {[%clk 0:00:54]}  d5 {[%clk 0:02:59]} 3. Nd2 {[%clk 0:00:55]}  Bd6 {[%clk 0:02:57]} 4. g3 {[%clk 0:00:55]}  Ne7 {[%clk 0:02:56]} 5. Bg2 {[%clk 0:00:55]}  f6 {[%clk 0:02:57]} 6. Ne2 {[%clk 0:00:56]}  O-O {[%clk 0:02:57]} 7. O-O {[%clk 0:00:56]}  c5 {[%clk 0:02:57]} 8. c3 {[%clk 0:00:56]}  Nbc6 {[%clk 0:02:57]} 9. f4 {[%clk 0:00:56]}  Kh8 {[%clk 0:02:50]} 10. Nf3 {[%clk 0:00:57]}  Rb8 {[%clk 0:02:47]} 11. Kh1 {[%clk 0:00:57]}  b5 {[%clk 0:02:46]} 12. Qe1 {[%clk 0:00:57]}  b4 {[%clk 0:02:45]} 13. Neg1 {[%clk 0:00:57]}  a5 {[%clk 0:02:38]} 14. e5 {[%clk 0:00:56]}  Bc7 {[%clk 0:02:28]} 15. exf6 {[%clk 0:00:56]}  gxf6 {[%clk 0:02:28]} 16. c4 {[%clk 0:00:50]}  Nf5 {[%clk 0:02:25]} 17. Ne2 {[%clk 0:00:46]}  d4 {[%clk 0:02:19]} 18. g4 {[%clk 0:00:40]}  Nfe7 {[%clk 0:02:15]} 19. Qh4 {[%clk 0:00:39]}  Ng6 {[%clk 0:02:14]} 20. Qh6 {[%clk 0:00:39]}  Bb7 {[%clk 0:02:12]} 21. Ng3 {[%clk 0:00:28]}  Qd7 {[%clk 0:02:05]} 22. Nh5 {[%clk 0:00:29]}  Rf7 {[%clk 0:01:53]} 23. Nd2 {[%clk 0:00:28]}  Nce7 {[%clk 0:01:49]} 24. Bxb7 {[%clk 0:00:26]}  Rxb7 {[%clk 0:01:49]} 25. Ne4 {[%clk 0:00:27]}  Ng8 {[%clk 0:01:48]} 26. Nhxf6 {[%clk 0:00:24]}  Nxh6 {[%clk 0:01:41]} 27. Nxd7 {[%clk 0:00:25]}  Nxg4 {[%clk 0:01:30]} 28. Ndxc5 {[%clk 0:00:24]}  Rb8 {[%clk 0:01:27]} 29. Nxe6 {[%clk 0:00:24]}  Re8 {[%clk 0:01:18]} 30. Nxc7 {[%clk 0:00:24]}  Rxc7 {[%clk 0:01:16]} 31. b3 {[%clk 0:00:24]}  h5 {[%clk 0:00:48]} 32. Bb2 {[%clk 0:00:24]}  Rd7 {[%clk 0:00:44]} 33. Rae1 {[%clk 0:00:24]}  Kg7 {[%clk 0:00:40]} 34. h3 {[%clk 0:00:24]}  Nf6 {[%clk 0:00:39]} 35. Kg2 {[%clk 0:00:20]}  Nh4+ {[%clk 0:00:37]} 36. Kg3 {[%clk 0:00:20]}  Nf5+ {[%clk 0:00:37]} 37. Kf3 {[%clk 0:00:20]}  Nh4+ {[%clk 0:00:35]} 38. Kf2 {[%clk 0:00:20]}  Nxe4+ {[%clk 0:00:34]} 39. dxe4 {[%clk 0:00:19]}  Kh7 {[%clk 0:00:32]} 40. Kg3 {[%clk 0:00:19]}  Ng6 {[%clk 0:00:30]} 41. e5 {[%clk 0:00:20]}  d3 {[%clk 0:00:26]} 42. f5 {[%clk 0:00:18]}  Ne7 {[%clk 0:00:22]} 43. e6 {[%clk 0:00:16]}  Rg8+ {[%clk 0:00:14]} 44. Kf4 {[%clk 0:00:16]}  Rb7 {[%clk 0:00:13]} 45. Rg1 {[%clk 0:00:16]}  d2 {[%clk 0:00:12]} 46. Rd1 {[%clk 0:00:15]}  Rf8 {[%clk 0:00:12]} 47. Rg7+ {[%clk 0:00:15]}  Kh6 {[%clk 0:00:11]} 48. Rf7 {[%clk 0:00:14]}  Rd8 {[%clk 0:00:06]} 49. Bg7+ {[%clk 0:00:11]}  Kh7 {[%clk 0:00:05]} 50. Bf6+ {[%clk 0:00:11]}  Kh6 {[%clk 0:00:05]} 51. Bxe7 {[%clk 0:00:12]}  Rxe7 {[%clk 0:00:05]} 52. Rxe7 {[%clk 0:00:12]}  Rd3 {[%clk 0:00:06]} 53. f6 {[%clk 0:00:11]}  Rxh3 {[%clk 0:00:06]} 54. f7 {[%clk 0:00:11]}  Rh2 {[%clk 0:00:05]} 55. f8=Q+ {[%clk 0:00:10]}  Kg6 {[%clk 0:00:06]} 56. Rg7+ {[%clk 0:00:10]}  Kh6 {[%clk 0:00:06]} 57. Qh8# {[%clk 0:00:09]} 1-0

[Event "December 19 Late 2023"]
[Site "https://www.chess.com"]
[Date "2023.12.19"]
[Round "3"]
[White "Fernandez Bustamante, Leancy B."]
[Black "Jesusesmifuerza"]
[Result "0-1"]
[Board "164"]
[TimeControl "180+1"]
[WhiteFideId "3523870"]
[WhiteElo "2049"]
[BlackElo "2147"]
[WhiteTeam "CUB"]
[WhiteClock "0:00:21"]
[BlackClock "0:00:04"]

1. e4 {[%clk 0:03:00]}  e5 {[%clk 0:02:50]} 2. Nf3 {[%clk 0:02:59]}  d5 {[%clk 0:02:49]} 3. exd5 {[%clk 0:02:59]}  e4 {[%clk 0:02:50]} 4. Ne5 {[%clk 0:02:58]}  Qxd5 {[%clk 0:02:50]} 5. d4 {[%clk 0:02:57]}  exd3 {[%clk 0:02:50]} 6. Nxd3 {[%clk 0:02:57]}  Nf6 {[%clk 0:02:51]} 7. Nc3 {[%clk 0:02:56]}  Qd8 {[%clk 0:02:51]} 8. Be2 {[%clk 0:02:56]}  Bd6 {[%clk 0:02:52]} 9. Bf4 {[%clk 0:02:53]}  O-O {[%clk 0:02:51]} 10. O-O {[%clk 0:02:52]}  Bf5 {[%clk 0:02:50]} 11. Bxd6 {[%clk 0:02:50]}  Qxd6 {[%clk 0:02:50]} 12. Nb5 {[%clk 0:02:45]}  Qb6 {[%clk 0:02:47]} 13. a4 {[%clk 0:02:41]}  a6 {[%clk 0:02:47]} 14. Nc3 {[%clk 0:02:36]}  Nbd7 {[%clk 0:02:46]} 15. Qc1 {[%clk 0:02:32]}  Rfe8 {[%clk 0:02:37]} 16. Qg5 {[%clk 0:02:27]}  Bg6 {[%clk 0:02:37]} 17. Rfe1 {[%clk 0:02:20]}  Bxd3 {[%clk 0:02:31]} 18. Bxd3 {[%clk 0:02:19]}  Qxb2 {[%clk 0:02:30]} 19. Ne4 {[%clk 0:02:09]}  Nxe4 {[%clk 0:02:28]} 20. Bxe4 {[%clk 0:02:06]}  Nf6 {[%clk 0:02:27]} 21. Bd3 {[%clk 0:01:56]}  Qc3 {[%clk 0:02:19]} 22. Red1 {[%clk 0:01:50]}  Rad8 {[%clk 0:02:16]} 23. h4 {[%clk 0:01:46]}  h6 {[%clk 0:02:16]} 24. Qg3 {[%clk 0:01:45]}  Qc5 {[%clk 0:02:00]} 25. Rab1 {[%clk 0:01:42]}  b6 {[%clk 0:01:42]} 26. Rd2 {[%clk 0:01:40]}  Ne4 {[%clk 0:01:37]} 27. Bxe4 {[%clk 0:01:38]}  Rxd2 {[%clk 0:01:36]} 28. Bd3 {[%clk 0:01:28]}  a5 {[%clk 0:01:28]} 29. Qf4 {[%clk 0:01:27]}  Qc3 {[%clk 0:01:17]} 30. Qf5 {[%clk 0:01:20]}  g6 {[%clk 0:01:11]} 31. Qf4 {[%clk 0:01:14]}  Kg7 {[%clk 0:01:09]} 32. Rb3 {[%clk 0:01:12]}  Re1+ {[%clk 0:01:07]} 33. Kh2 {[%clk 0:01:12]}  Qe5 {[%clk 0:01:08]} 34. Qxe5+ {[%clk 0:01:04]}  Rxe5 {[%clk 0:01:09]} 35. Kg3 {[%clk 0:01:04]}  Rc5 {[%clk 0:01:05]} 36. Kf3 {[%clk 0:01:03]}  Rcxc2 {[%clk 0:01:03]} 37. Bxc2 {[%clk 0:01:03]}  Rxc2 {[%clk 0:01:04]} 38. g3 {[%clk 0:01:02]}  Kf6 {[%clk 0:01:03]} 39. Re3 {[%clk 0:00:57]}  Rc4 {[%clk 0:01:01]} 40. Ra3 {[%clk 0:00:57]}  c6 {[%clk 0:01:01]} 41. Ke3 {[%clk 0:00:57]}  Rb4 {[%clk 0:00:58]} 42. Rc3 {[%clk 0:00:55]}  c5 {[%clk 0:00:57]} 43. Ra3 {[%clk 0:00:55]}  Ke5 {[%clk 0:00:53]} 44. Kd3 {[%clk 0:00:52]}  c4+ {[%clk 0:00:50]} 45. Kd2 {[%clk 0:00:47]}  Kd4 {[%clk 0:00:47]} 46. Rf3 {[%clk 0:00:46]}  f5 {[%clk 0:00:47]} 47. Rf4+ {[%clk 0:00:44]}  Kd5 {[%clk 0:00:44]} 48. Kc3 {[%clk 0:00:43]}  Rxa4 {[%clk 0:00:42]} 49. g4 {[%clk 0:00:41]}  Ra3+ {[%clk 0:00:41]} 50. Kc2 {[%clk 0:00:40]}  b5 {[%clk 0:00:22]} 51. gxf5 {[%clk 0:00:40]}  gxf5 {[%clk 0:00:23]} 52. Rxf5+ {[%clk 0:00:40]}  Kd4 {[%clk 0:00:24]} 53. Rxb5 {[%clk 0:00:40]}  Ra2+ {[%clk 0:00:23]} 54. Kb1 {[%clk 0:00:39]}  Rxf2 {[%clk 0:00:22]} 55. Rxa5 {[%clk 0:00:39]}  Kd3 {[%clk 0:00:21]} 56. Ra6 {[%clk 0:00:37]}  h5 {[%clk 0:00:18]} 57. Rd6+ {[%clk 0:00:35]}  Kc3 {[%clk 0:00:18]} 58. Rd5 {[%clk 0:00:35]}  Kb3 {[%clk 0:00:15]} 59. Rb5+ {[%clk 0:00:35]}  Kc3 {[%clk 0:00:16]} 60. Rxh5 {[%clk 0:00:35]}  Rf1+ {[%clk 0:00:15]} 61. Ka2 {[%clk 0:00:35]}  Kc2 {[%clk 0:00:16]} 62. Rc5 {[%clk 0:00:36]}  c3 {[%clk 0:00:15]} 63. h5 {[%clk 0:00:36]}  Rf7 {[%clk 0:00:14]} 64. Ka3 {[%clk 0:00:35]}  Ra7+ {[%clk 0:00:13]} 65. Kb4 {[%clk 0:00:36]}  Rb7+ {[%clk 0:00:12]} 66. Ka3 {[%clk 0:00:36]}  Kd2 {[%clk 0:00:11]} 67. Rd5+ {[%clk 0:00:35]}  Kc1 {[%clk 0:00:11]} 68. h6 {[%clk 0:00:35]}  c2 {[%clk 0:00:12]} 69. Rc5 {[%clk 0:00:35]}  Kb1 {[%clk 0:00:12]} 70. h7 {[%clk 0:00:26]}  Rxh7 {[%clk 0:00:08]} 71. Rb5+ {[%clk 0:00:24]}  Kc1 {[%clk 0:00:09]} 72. Kb3 {[%clk 0:00:21]}  Rh3+ {[%clk 0:00:09]} 73. Ka2 {[%clk 0:00:20]}  Kd2 {[%clk 0:00:04]} 74. Rd5+ {[%clk 0:00:20]}  Rd3 {[%clk 0:00:05]} 75. Rh5 {[%clk 0:00:19]}  c1=Q {[%clk 0:00:03]} 76. Rh2+ {[%clk 0:00:20]}  Kc3 {[%clk 0:00:03]} 77. Rb2 {[%clk 0:00:21]}  Qxb2# {[%clk 0:00:04]} 0-1

[Event "December 19 Late 2023"]
[Site "https://www.chess.com"]
[Date "2023.12.19"]
[Round "3"]
[White "Nery Junior, Jose Antonio"]
[Black "Kniazev, Igor"]
[Result "1/2-1/2"]
[Board "165"]
[TimeControl "180+1"]
[WhiteFideId "2104822"]
[BlackFideId "4136349"]
[WhiteElo "2197"]
[BlackElo "1853"]
[WhiteTeam "BRA"]
[BlackTeam "RUS"]
[WhiteClock "0:00:11"]
[BlackClock "0:00:08"]

1. e4 {[%clk 0:02:40]}  e5 {[%clk 0:02:59]} 2. Nf3 {[%clk 0:02:39]}  Nf6 {[%clk 0:02:59]} 3. Bc4 {[%clk 0:02:38]}  Nxe4 {[%clk 0:02:57]} 4. Nc3 {[%clk 0:02:37]}  Nxc3 {[%clk 0:02:56]} 5. dxc3 {[%clk 0:02:38]}  f6 {[%clk 0:02:56]} 6. Nh4 {[%clk 0:02:31]}  g6 {[%clk 0:02:51]} 7. O-O {[%clk 0:02:29]}  c6 {[%clk 0:02:49]} 8. f4 {[%clk 0:02:20]}  d5 {[%clk 0:02:45]} 9. Bb3 {[%clk 0:01:59]}  Bc5+ {[%clk 0:02:44]} 10. Kh1 {[%clk 0:01:58]}  O-O {[%clk 0:02:19]} 11. fxe5 {[%clk 0:01:40]}  fxe5 {[%clk 0:02:08]} 12. Rxf8+ {[%clk 0:01:38]}  Qxf8 {[%clk 0:02:05]} 13. Bxd5+ {[%clk 0:01:28]}  cxd5 {[%clk 0:02:01]} 14. Qxd5+ {[%clk 0:01:29]}  Qf7 {[%clk 0:02:01]} 15. Qxc5 {[%clk 0:01:25]}  Qf1+ {[%clk 0:01:50]} 16. Qg1 {[%clk 0:01:25]}  Qxg1+ {[%clk 0:01:48]} 17. Kxg1 {[%clk 0:01:26]}  e4 {[%clk 0:01:47]} 18. Kf2 {[%clk 0:01:23]}  Nc6 {[%clk 0:01:47]} 19. Ke3 {[%clk 0:01:21]}  g5 {[%clk 0:01:45]} 20. Kxe4 {[%clk 0:01:14]}  gxh4 {[%clk 0:01:45]} 21. Bf4 {[%clk 0:01:09]}  Bg4 {[%clk 0:01:38]} 22. Bd6 {[%clk 0:01:04]}  Re8+ {[%clk 0:01:37]} 23. Kf4 {[%clk 0:01:03]}  h5 {[%clk 0:01:30]} 24. h3 {[%clk 0:00:58]}  Bc8 {[%clk 0:01:26]} 25. Kg5 {[%clk 0:00:57]}  Re6 {[%clk 0:01:24]} 26. Ba3 {[%clk 0:00:55]}  Re2 {[%clk 0:01:20]} 27. Rg1 {[%clk 0:00:54]}  Rxc2 {[%clk 0:01:16]} 28. Kxh5 {[%clk 0:00:51]}  Ne5 {[%clk 0:01:14]} 29. Kxh4 {[%clk 0:00:49]}  Nc4 {[%clk 0:01:13]} 30. Bc5 {[%clk 0:00:46]}  b6 {[%clk 0:01:11]} 31. Bd4 {[%clk 0:00:43]}  Rxb2 {[%clk 0:01:10]} 32. Re1 {[%clk 0:00:43]}  Kf7 {[%clk 0:01:02]} 33. g4 {[%clk 0:00:42]}  Rh2 {[%clk 0:00:57]} 34. Kg3 {[%clk 0:00:40]}  Rxa2 {[%clk 0:00:56]} 35. h4 {[%clk 0:00:39]}  a5 {[%clk 0:00:46]} 36. h5 {[%clk 0:00:37]}  a4 {[%clk 0:00:44]} 37. g5 {[%clk 0:00:36]}  Bf5 {[%clk 0:00:38]} 38. Rf1 {[%clk 0:00:29]}  Ke6 {[%clk 0:00:33]} 39. g6 {[%clk 0:00:29]}  Nd2 {[%clk 0:00:30]} 40. Rxf5 {[%clk 0:00:26]}  Kxf5 {[%clk 0:00:27]} 41. g7 {[%clk 0:00:25]}  Ne4+ {[%clk 0:00:27]} 42. Kf3 {[%clk 0:00:22]}  Nd2+ {[%clk 0:00:11]} 43. Ke3 {[%clk 0:00:19]}  Nf1+ {[%clk 0:00:12]} 44. Kf3 {[%clk 0:00:17]}  Nd2+ {[%clk 0:00:12]} 45. Kg2 {[%clk 0:00:16]}  Ne4+ {[%clk 0:00:11]} 46. Kh3 {[%clk 0:00:13]}  Ng5+ {[%clk 0:00:10]} 47. Kg3 {[%clk 0:00:10]}  Ne4+ {[%clk 0:00:09]} 48. Kf3 {[%clk 0:00:11]}  Nd2+ {[%clk 0:00:08]} 1/2-1/2

[Event "December 19 Late 2023"]
[Site "https://www.chess.com"]
[Date "2023.12.19"]
[Round "3"]
[White "Chess_Star1234"]
[Black "Sailer, Mike"]
[Result "1-0"]
[Board "167"]
[TimeControl "180+1"]
[BlackFideId "2012901"]
[WhiteElo "2354"]
[BlackElo "2109"]
[BlackTeam "USA"]
[WhiteClock "0:00:09"]
[BlackClock "0:00:00"]

1. d4 {[%clk 0:02:56]}  d5 {[%clk 0:02:59]} 2. c4 {[%clk 0:02:57]}  Bf5 {[%clk 0:03:00]} 3. cxd5 {[%clk 0:02:56]}  Bxb1 {[%clk 0:03:00]} 4. Qa4+ {[%clk 0:02:57]}  c6 {[%clk 0:03:00]} 5. Rxb1 {[%clk 0:02:57]}  Qxd5 {[%clk 0:03:00]} 6. Nf3 {[%clk 0:02:57]}  Nf6 {[%clk 0:02:56]} 7. e3 {[%clk 0:02:55]}  e6 {[%clk 0:02:54]} 8. Bd2 {[%clk 0:02:48]}  Nbd7 {[%clk 0:02:50]} 9. Be2 {[%clk 0:02:26]}  Bd6 {[%clk 0:02:38]} 10. O-O {[%clk 0:01:57]}  Ne4 {[%clk 0:02:35]} 11. Bc3 {[%clk 0:01:44]}  O-O {[%clk 0:02:25]} 12. Rfc1 {[%clk 0:01:09]}  Qh5 {[%clk 0:02:17]} 13. Qc2 {[%clk 0:01:00]}  Ndf6 {[%clk 0:01:56]} 14. h3 {[%clk 0:00:55]}  Qh6 {[%clk 0:01:24]} 15. Bd3 {[%clk 0:00:44]}  Ng5 {[%clk 0:01:15]} 16. Ne5 {[%clk 0:00:29]}  Rfd8 {[%clk 0:00:47]} 17. f4 {[%clk 0:00:20]}  Nxh3+ {[%clk 0:00:34]} 18. gxh3 {[%clk 0:00:19]}  Qxh3 {[%clk 0:00:34]} 19. Re1 {[%clk 0:00:09]}  Bxe5 {[%clk 0:00:24]} 20. fxe5 {[%clk 0:00:10]}  Ng4 {[%clk 0:00:14]} 21. Qg2 {[%clk 0:00:10]}  Qh4 {[%clk 0:00:10]} 22. Rbd1 {[%clk 0:00:04]}  Rf8 {[%clk 0:00:09]} 23. Be4 {[%clk 0:00:04]}  f5 {[%clk 0:00:09]} 24. Bf3 {[%clk 0:00:05]}  h5 {[%clk 0:00:05]} 25. Bxg4 {[%clk 0:00:05]}  hxg4 {[%clk 0:00:04]} 26. Qh2 {[%clk 0:00:03]}  Qg5 {[%clk 0:00:04]} 27. Qg3 {[%clk 0:00:03]}  Qg6 {[%clk 0:00:05]} 28. Kg2 {[%clk 0:00:04]}  Kf7 {[%clk 0:00:06]} 29. Rh1 {[%clk 0:00:04]}  c5 {[%clk 0:00:05]} 30. Rh2 {[%clk 0:00:04]}  cxd4 {[%clk 0:00:06]} 31. exd4 {[%clk 0:00:05]}  Rad8 {[%clk 0:00:06]} 32. Rdh1 {[%clk 0:00:05]}  Rd5 {[%clk 0:00:06]} 33. Qf4 {[%clk 0:00:06]}  Rfd8 {[%clk 0:00:05]} 34. Rh8 {[%clk 0:00:06]}  Rxh8 {[%clk 0:00:05]} 35. Rxh8 {[%clk 0:00:07]}  Rd7 {[%clk 0:00:03]} 36. Qh2 {[%clk 0:00:07]}  Qg5 {[%clk 0:00:03]} 37. Qh5+ {[%clk 0:00:08]}  Qxh5 {[%clk 0:00:04]} 38. Rxh5 {[%clk 0:00:09]}  Kg6 {[%clk 0:00:05]} 39. Rh8 {[%clk 0:00:09]}  Kg5 {[%clk 0:00:05]} 40. Rf8 {[%clk 0:00:09]}  Kf4 {[%clk 0:00:05]} 41. Kf2 {[%clk 0:00:08]}  Ke4 {[%clk 0:00:05]} 42. Kg3 {[%clk 0:00:08]}  g5 {[%clk 0:00:04]} 43. Rg8 {[%clk 0:00:07]}  Rh7 {[%clk 0:00:03]} 44. Rxg5 {[%clk 0:00:07]}  Rh3+ {[%clk 0:00:03]} 45. Kg2 {[%clk 0:00:07]}  Rd3 {[%clk 0:00:03]} 46. Rg6 {[%clk 0:00:08]}  Kf4 {[%clk 0:00:03]} 47. Rxe6 {[%clk 0:00:08]}  Re3 {[%clk 0:00:03]} 48. Bd2 {[%clk 0:00:08]}  Ke4 {[%clk 0:00:02]} 49. Bxe3 {[%clk 0:00:08]}  Kxe3 {[%clk 0:00:03]} 50. Rf6 {[%clk 0:00:09]}  f4 {[%clk 0:00:00]} 51. e6 {[%clk 0:00:09]} 1-0